bitfinex/quotes_ETHUSD_20250824
["timestamp","ask_amount","ask_price","bid_price","bid_amount"]
[1756059678064,0.66,4935.5,4934.2,0.4626]
[1756059678287,0.1016,4934.3,4934.2,0.4626]
[1756059678886,0.1016,4934.3,4934.2,2.0206]
[1756059680274,0.1016,4934.3,4934.2,2.3351]
[1756059680777,3.998,4936.1,4934.2,2.3351]
[1756059680778,0.1016,4934.7,4934.2,2.3351]
[1756059680975,0.1016,4935.1,4934.2,1.8725]
[1756059681168,0.1016,4935.1,4934.4,0.1016]
[1756059681368,0.1016,4935.1,4935.0,0.3145]
[1756059681564,0.1016,4935.1,4935.0,0.7771]
[1756059683181,0.02,4935.8,4935.0,0.7771]
[1756059683381,0.1016,4935.6,4935.1,1.9941]
[1756059683670,0.1016,4935.6,4935.5,0.2966]
[1756059684202,0.1016,4935.6,4935.5,0.7327]
[1756059685657,0.02,4935.8,4935.5,0.7327]
[1756059685906,0.02,4935.8,4935.6,0.4361]
[1756059686058,0.02,4935.8,4935.7,0.2966]
[1756059686506,0.02,4935.8,4935.7,0.7327]
[1756059688101,0.02,4935.8,4935.7,0.8343]
[1756059689183,0.02,4935.8,4935.7,3.8343]
[1756059689362,0.02,4935.8,4935.7,0.8343]
[1756059689563,0.02,4935.8,4935.7,4.7863]
[1756059691300,0.02,4935.8,4935.7,0.1016]
[1756059691301,0.779,4935.8,4935.7,0.1016]
[1756059691797,0.66,4935.7,4934.1,0.001]
[1756059691983,0.02,4935.8,4934.1,0.001]
[1756059692518,0.2232,4935.8,4934.1,0.001]
[1756059693101,0.02,4935.8,4934.1,0.001]
[1756059693629,0.02,4935.8,4934.2,0.4361]
[1756059696192,0.02,4935.8,4934.4,3.0]
[1756059696396,0.02,4935.8,4934.5,0.4361]
[1756059696590,0.02,4935.8,4935.7,0.2966]
[1756059696801,0.02,4935.8,4935.7,0.7327]
[1756059697606,0.02,4935.8,4935.7,7.7257]
[1756059697804,0.002,4937.3,4935.7,4.7257]
[1756059698030,0.002,4937.3,4935.8,0.4361]
[1756059698247,0.002,4937.3,4936.7,0.2966]
[1756059698806,0.002,4937.3,4936.7,0.7327]
[1756059700649,0.002,4937.3,4936.5,1.558]
[1756059701021,0.002,4937.3,4936.5,1.9941]
[1756059701628,0.1016,4937.0,4936.5,1.558]
[1756059702542,0.002,4937.3,4935.8,1.9941]
[1756059702729,0.1016,4936.6,4935.9,0.1016]
[1756059703243,0.1016,4936.6,4936.5,0.2966]
[1756059703420,0.1016,4936.6,4936.5,0.7327]
[1756059703617,0.002,4937.3,4936.5,7.6987]
[1756059703822,0.1016,4937.2,4936.6,0.4361]
[1756059704021,0.1016,4937.2,4936.7,3.0]
[1756059704544,0.002,4937.3,4936.3,3.0]
[1756059704746,0.002,4937.3,4936.4,0.4361]
[1756059704747,0.1016,4936.7,4936.4,0.4361]
[1756059705040,0.002,4937.3,4936.6,0.2966]
[1756059705241,0.1016,4937.2,4936.6,0.2966]
[1756059705426,0.1016,4937.2,4936.7,0.4361]
[1756059707645,0.1016,4937.2,4936.7,0.7327]
[1756059707846,0.1016,4937.2,4936.7,2.2897]
[1756059708057,0.002,4937.3,4936.7,2.2897]
[1756059710044,0.002,4937.3,4936.7,9.2287]
[1756059710559,0.002,4937.3,4936.7,9.2277]
[1756059710760,0.002,4937.3,4936.7,9.2257]
[1756059710962,0.002,4937.3,4936.7,9.2237]
[1756059712257,0.002,4937.3,4936.7,9.2207]
[1756059715333,0.002,4937.3,4936.7,5.2897]
[1756059715539,0.002,4937.3,4936.7,9.2087]
[1756059717694,0.002,4937.3,4936.7,5.2897]
[1756059718092,0.002,4937.3,4936.7,9.1927]
[1756059718260,0.002,4937.3,4936.7,9.1907]
[1756059718467,0.002,4937.3,4936.7,5.2897]
[1756059718666,0.002,4937.3,4936.7,9.1907]
[1756059719179,0.002,4937.3,4936.7,9.1887]
[1756059720887,0.002,4937.3,4936.7,5.2897]
[1756059721066,0.002,4937.3,4936.7,9.1807]
[1756059721386,0.002,4937.3,4936.7,5.2897]
[1756059721686,0.002,4937.3,4936.7,10.030093]
[1756059721891,0.002,4937.3,4936.7,10.131693]
[1756059722894,0.002,4937.3,4936.7,6.242693]
[1756059723065,0.002,4937.3,4936.7,10.129693]
[1756059724063,0.002,4937.3,4936.7,6.242693]
[1756059724463,0.002,4937.3,4936.7,6.387993]
[1756059724660,0.002,4937.3,4936.7,9.387993]
[1756059724888,0.002,4937.3,4936.7,6.387993]
[1756059725097,0.002,4937.3,4936.7,9.387993]
[1756059726191,0.002,4937.3,4936.7,5.509993]
[1756059726390,0.002,4937.3,4936.7,9.387993]
[1756059726584,0.3148,4936.8,4936.7,9.381993]
[1756059726969,0.3148,4936.8,4936.7,5.509993]
[1756059727177,0.3148,4936.8,4936.7,6.377993]
[1756059727579,0.3148,4936.8,4936.7,9.377993]
[1756059727876,0.3148,4936.8,4936.7,5.408393]
[1756059728082,0.4164,4936.8,4936.7,9.276393]
[1756059728512,0.022,4936.8,4936.7,9.276393]
[1756059728874,0.022,4936.8,4936.7,9.272393]
[1756059729377,0.121,4936.8,4936.7,9.272393]
[1756059729579,0.781,4936.8,4936.7,0.851393]
[1756059729779,1.0029,4936.8,4936.7,0.851393]
[1756059729983,1.0029,4936.8,4936.7,4.713393]
[1756059730631,0.781,4936.8,4936.7,4.713393]
[1756059730774,0.121,4936.8,4936.7,4.713393]
[1756059730975,0.022,4936.8,4936.7,7.713393]
[1756059731331,0.022,4936.8,4936.7,8.476293]
[1756059732482,0.022,4936.8,4936.7,4.614293]
[1756059732683,0.022,4936.8,4936.7,8.474293]
[1756059734082,0.002,4937.3,4936.9,0.66]
[1756059734277,0.002,4937.6,4937.3,16.124162]
[1756059734493,0.02,4939.8,4937.6,0.66]
[1756059734718,0.02,4939.8,4938.1,3.0]
[1756059734899,0.02,4939.8,4938.7,15.385637]
[1756059735102,0.02,4939.8,4938.7,28.660637]
[1756059735329,0.02,4939.8,4938.7,29.133137]
[1756059735711,0.02,4939.8,4938.7,29.214224]
[1756059736055,0.02,4939.8,4938.8,3.0]
[1756059736233,0.02,4939.8,4939.7,18.385637]
[1756059736404,0.02,4939.8,4939.7,4.557]
[1756059736603,0.02,4939.8,4939.7,8.404]
[1756059736839,0.02,4939.8,4939.7,4.557]
[1756059737137,0.02,4939.8,4939.7,8.403]
[1756059737814,0.02,4939.8,4939.7,8.6934]
[1756059738002,0.02,4939.8,4939.7,9.1619]
[1756059738408,0.022,4939.8,4939.7,24.257137]
[1756059738901,0.022,4939.8,4939.7,24.254137]
[1756059739805,0.02,4940.8,4939.8,12.739828]
[1756059740033,0.02,4940.8,4938.7,4.947087]
[1756059740034,0.2233,4939.8,4939.4,1.556]
[1756059740336,0.2233,4939.8,4939.7,1.556]
[1756059740701,0.02,4940.8,4939.8,3.0]
[1756059740934,0.02,4940.8,4940.0,3.0]
[1756059741230,0.0022,4939.8,4939.7,1.556]
[1756059741409,0.0022,4939.8,4939.7,8.417]
[1756059741610,0.0022,4939.8,4939.7,4.556]
[1756059741816,0.02,4940.8,4939.8,3.0]
[1756059742041,0.02,4940.8,4939.9,3.858]
[1756059742240,0.02,4940.8,4939.7,1.556]
[1756059742546,0.0022,4939.9,4939.8,3.857]
[1756059742743,0.0975,4940.8,4939.8,3.857]
[1756059743204,0.0975,4940.8,4940.0,3.0]
[1756059743539,0.31659703,4941.1,4940.1,3.853]
[1756059744603,0.31659703,4941.1,4940.2,3.0]
[1756059745340,0.31659703,4941.1,4940.4,3.0]
[1756059745937,0.31659703,4941.1,4940.3,3.848]
[1756059745938,0.31659703,4941.1,4940.5,3.845]
[1756059746236,0.31659703,4941.1,4940.6,4.556]
[1756059746952,0.31659703,4941.1,4940.6,1.556]
[1756059747116,0.31659703,4941.1,4940.8,3.0]
[1756059747937,0.66,4941.0,4940.9,6.834]
[1756059748158,0.66,4941.0,4940.9,3.833]
[1756059748510,0.66,4941.0,4940.6,1.556]
[1756059748750,0.66,4941.0,4939.8,0.02]
[1756059748974,0.002,4941.3,4939.9,3.831]
[1756059749509,0.002,4941.1,4939.9,3.831]
[1756059749852,0.1016,4940.0,4939.9,3.831]
[1756059750405,0.1016,4940.0,4939.9,6.831]
[1756059750809,0.1016,4940.0,4939.9,6.832]
[1756059751349,0.1016,4940.0,4939.9,3.828]
[1756059751718,0.1016,4940.0,4939.9,3.827]
[1756059752227,0.1016,4940.0,4939.8,0.02]
[1756059752425,0.1016,4940.0,4939.9,3.827]
[1756059752736,0.1016,4940.0,4939.8,0.02]
[1756059753358,0.1016,4940.0,4939.8,3.842]
[1756059753961,0.1016,4940.0,4939.8,0.02]
[1756059758461,0.1555,4939.9,4939.8,0.02]
[1756059759112,0.8568,4939.9,4939.8,0.02]
[1756059760546,0.96817384,4939.9,4939.8,0.02]
[1756059762356,0.77137384,4939.9,4939.8,0.02]
[1756059762948,0.11137384,4939.9,4939.8,0.02]
[1756059763152,0.1016,4940.0,4939.8,0.7565]
[1756059763655,0.66,4939.9,4939.8,0.02]
[1756059764351,0.7616,4939.9,4939.8,0.7565]
[1756059764972,0.7616,4939.9,4939.8,2.3125]
[1756059765360,0.7616,4939.9,4939.8,6.0975]
[1756059765562,0.7616,4939.9,4939.8,6.0965]
[1756059765563,0.1016,4939.9,4939.8,6.0965]
[1756059765739,0.31666163,4940.5,4939.9,3.0]
[1756059765939,0.31666163,4940.5,4940.4,0.2901]
[1756059766171,0.41826163,4940.5,4940.4,0.2901]
[1756059766671,0.41826163,4940.5,4940.4,0.7365]
[1756059766980,1.07826163,4940.5,4940.4,0.7365]
[1756059768479,0.66,4940.4,4939.8,1.577]
[1756059768649,0.66,4940.4,4939.9,3.777]
[1756059768842,0.1016,4940.0,4939.9,0.4464]
[1756059769047,0.7616,4940.0,4939.9,6.772]
[1756059769749,0.7616,4940.0,4939.9,3.0]
[1756059769958,0.7616,4940.0,4939.9,6.77]
[1756059770165,0.7616,4940.0,4939.9,7.2164]
[1756059770365,0.7616,4940.0,4939.9,3.4464]
[1756059770570,0.7616,4940.0,4939.9,7.2144]
[1756059770882,0.7616,4940.0,4939.9,3.4464]
[1756059771051,0.7616,4940.0,4939.9,7.2144]
[1756059771251,0.7616,4940.0,4939.9,6.768]
[1756059771454,0.7616,4940.0,4939.9,3.0]
[1756059771655,0.7616,4940.0,4939.9,6.764]
[1756059772557,0.7616,4940.0,4939.9,7.4932]
[1756059773098,0.66,4939.9,4939.8,2.39733836]
[1756059773256,0.66,4939.9,4939.8,6.15733836]
[1756059773455,0.1016,4940.0,4939.8,6.15633836]
[1756059773650,0.1016,4940.0,4939.9,3.758]
[1756059773865,0.2006,4940.0,4939.9,3.758]
[1756059774068,0.2006,4940.0,4939.8,2.39733836]
[1756059776690,0.2006,4940.0,4939.8,0.84133836]
[1756059778105,0.66,4939.9,4939.8,0.84133836]
[1756059779167,0.8562,4939.9,4939.8,0.84133836]
[1756059780409,0.98365043,4939.9,4939.8,0.84133836]
[1756059780609,0.88645043,4939.9,4939.8,0.84133836]
[1756059780789,16.07888743,4939.9,4939.8,0.84133836]
[1756059780984,28.38488743,4939.9,4939.8,0.84133836]
[1756059781406,28.82153407,4939.9,4939.8,0.84133836]
[1756059781583,28.38488743,4939.9,4939.8,0.84133836]
[1756059783311,0.66,4939.7,4939.3,0.001]
[1756059783676,0.1555,4939.4,4939.3,0.001]
[1756059783872,0.8155,4939.4,4939.3,0.001]
[1756059784079,0.15134449,4939.7,4939.3,0.001]
[1756059784414,0.31677983,4939.4,4939.3,0.001]
[1756059786313,0.31677983,4939.4,4939.3,0.3053]
[1756059786482,0.14878476,4939.7,4939.3,0.7444]
[1756059786677,0.12745043,4939.9,4939.3,0.001]
[1756059786907,0.66,4939.8,4939.3,0.001]
[1756059787093,0.66,4939.6,4939.3,0.001]
[1756059787692,0.66,4939.6,4939.3,0.4401]
[1756059787890,0.12745043,4939.9,4939.5,0.3043]
[1756059788085,0.002,4940.8,4939.5,0.3043]
[1756059788280,0.002,4940.8,4939.6,0.4391]
[1756059789325,0.002,4940.8,4939.3,0.001]
[1756059789326,15.097237,4940.8,4939.3,0.001]
[1756059789484,0.66,4940.6,4939.3,0.001]
[1756059790930,0.7616,4939.4,4939.3,0.001]
[1756059791611,0.86943195,4939.4,4939.3,0.001]
[1756059791785,0.86943195,4939.4,4939.3,0.7444]
[1756059791986,0.7616,4939.4,4939.3,0.7444]
[1756059794605,0.1016,4939.4,4939.3,0.7444]
[1756059797536,1.5,4940.7,4939.3,0.7444]
[1756059797695,0.1016,4939.6,4939.4,0.4391]
[1756059797887,0.66,4940.2,4939.5,0.7434]
[1756059798081,0.66,4940.5,4939.6,0.4391]
[1756059799811,0.002,4940.4,4939.6,0.4391]
[1756059800123,0.002,4939.9,4939.6,0.4391]
[1756059800342,0.002,4939.9,4939.8,0.3043]
[1756059801010,0.002,4939.9,4939.8,0.7434]
[1756059806113,0.002,4939.9,4939.8,2.2994]
[1756059806912,0.002,4939.9,4939.4,0.4636]
[1756059807248,0.002,4939.9,4939.5,0.4636]
[1756059807529,0.002,4939.9,4939.3,0.001]
[1756059807734,0.002,4939.9,4939.6,0.4636]
[1756059808032,0.002,4939.9,4939.8,0.3062]
[1756059808530,0.1036,4939.9,4939.8,0.3062]
[1756059808736,0.1036,4939.9,4939.8,0.7698]
[1756059808910,0.002,4939.9,4939.8,0.7698]
[1756059812698,0.1016,4940.0,4939.8,0.7698]
[1756059813044,0.002,4940.4,4939.9,0.4636]
[1756059813343,0.002,4940.4,4940.3,0.3062]
[1756059813513,0.1036,4940.4,4940.3,0.3062]
[1756059813712,0.1036,4940.4,4940.3,0.7698]
[1756059814353,0.1036,4940.4,4940.0,1.556]
[1756059814515,0.1036,4940.4,4936.8,2.14547363]
[1756059814516,0.16256,4940.4,4939.4,0.4636]
[1756059814716,0.66,4940.3,4939.3,0.001]
[1756059816214,0.16256,4940.4,4939.3,0.001]
[1756059816411,1.5,4940.7,4940.4,3.0]
[1756059816652,1.025,4940.7,4940.6,3.3062]
[1756059816952,1.025,4940.7,4940.6,4.50304006]
[1756059817134,1.025,4940.7,4940.6,4.68720151]
[1756059817310,0.55,4940.7,4940.6,4.68720151]
[1756059817514,0.002,4941.4,4940.6,4.68720151]
[1756059817515,0.002,4941.4,4940.7,0.66]
[1756059817751,0.02,4941.8,4941.3,3.0]
[1756059817914,0.02,4941.8,4941.7,0.3062]
[1756059818119,0.02,4941.8,4941.7,0.49036145]
[1756059818342,0.02,4941.8,4941.7,0.95396145]
[1756059818513,0.02,4941.8,4941.7,7.66196145]
[1756059819255,0.02,4941.8,4941.7,7.6614906]
[1756059819457,0.4876,4944.8,4941.8,3.0]
[1756059819768,0.4876,4944.8,4942.7,3.3062]
[1756059819921,0.4876,4944.8,4942.7,8.75364233]
[1756059820119,0.4876,4944.8,4942.7,5.50924233]
[1756059820435,0.33637511,4942.8,4942.7,9.21624233]
[1756059820616,0.33637511,4942.8,4942.7,5.50924233]
[1756059820822,0.33637511,4942.8,4942.7,9.21624233]
[1756059821023,0.33637511,4942.8,4942.7,5.50924233]
[1756059821252,0.33637511,4942.8,4942.7,9.21624233]
[1756059821556,0.33637511,4942.8,4942.7,5.04564233]
[1756059821719,0.33637511,4942.8,4942.7,8.75264233]
[1756059821922,0.33637511,4942.8,4942.7,5.44644233]
[1756059822339,0.33637511,4942.8,4942.7,1.73944233]
[1756059822564,0.33637511,4942.8,4942.7,4.73944233]
[1756059822766,0.33637511,4942.8,4942.7,8.44644233]
[1756059824048,0.33637511,4942.8,4942.7,4.73944233]
[1756059824250,1.10657511,4942.8,4942.7,4.73944233]
[1756059824455,1.20737511,4942.8,4942.7,4.73944233]
[1756059824625,1.32811262,4942.8,4942.7,1.73944233]
[1756059825268,1.32811262,4942.8,4942.7,1.556]
[1756059825570,1.32811262,4942.8,4942.7,0.18294556]
[1756059825796,0.73977511,4942.8,4942.7,0.18294556]
[1756059826065,0.02,4942.8,4942.7,15.58438256]
[1756059826225,0.02,4942.8,4942.7,4.05354556]
[1756059826625,0.02,4942.8,4942.7,7.75954556]
[1756059827765,0.02,4942.8,4942.7,7.75854556]
[1756059828554,0.02,4942.8,4942.7,4.05354556]
[1756059828932,0.02,4942.8,4942.7,7.75854556]
[1756059829134,0.02,4942.8,4942.7,7.5756]
[1756059829333,0.02,4942.8,4942.7,7.75824209]
[1756059829535,0.33640818,4942.8,4942.7,7.75824209]
[1756059831270,0.33640818,4942.8,4942.7,22.85347909]
[1756059831765,0.33640818,4942.8,4942.7,19.14847909]
[1756059831956,0.33640818,4942.8,4942.7,22.85347909]
[1756059832455,0.33640818,4942.8,4942.7,0.58964209]
[1756059832768,0.33640818,4942.8,4942.7,4.29364209]
[1756059833281,0.33640818,4942.8,4942.7,4.74844209]
[1756059833485,0.33640818,4942.8,4942.7,22.84367909]
[1756059834037,0.02,4942.8,4942.7,22.84367909]
[1756059835540,0.1228,4943.8,4942.9,0.66]
[1756059835760,0.02,4944.8,4943.8,3.0]
[1756059835986,0.02,4944.8,4944.7,0.306]
[1756059836183,0.02,4944.8,4944.7,7.19264209]
[1756059836351,0.02,4944.8,4944.7,3.58944209]
[1756059836541,0.02,4944.8,4944.7,3.28344209]
[1756059837178,0.02,4944.8,4944.7,6.98744209]
[1756059837373,0.02,4944.8,4944.7,3.28344209]
[1756059837939,0.3153,4944.8,4944.7,6.98644209]
[1756059838144,0.02,4944.8,4944.7,6.98644209]
[1756059838444,0.02,4944.8,4944.7,3.28344209]
[1756059838644,0.02,4944.8,4944.7,6.98644209]
[1756059838859,0.02,4944.8,4944.7,7.29244209]
[1756059839408,0.02,4944.8,4944.7,7.29226752]
[1756059839672,0.02,4944.8,4944.7,7.74706752]
[1756059839855,0.02,4944.8,4944.7,7.29226752]
[1756059840443,0.3153,4944.8,4944.7,3.18246752]
[1756059841098,0.7788,4944.8,4944.7,3.18246752]
[1756059841375,0.4161,4944.8,4944.7,6.88546752]
[1756059841578,0.1208,4944.8,4944.7,6.88546752]
[1756059841944,0.43712325,4944.8,4944.7,7.19146752]
[1756059842141,0.33632325,4944.8,4944.7,7.64626752]
[1756059842357,0.33632325,4944.8,4944.7,7.74706752]
[1756059843262,0.28009577,4944.8,4944.7,7.74706752]
[1756059843457,10.0,4945.2,4944.8,3.0]
[1756059843652,10.0,4945.2,4944.9,1.73746752]
[1756059843849,10.0,4945.2,4945.0,0.18246752]
[1756059844064,10.0,4945.2,4945.1,3.702]
[1756059844265,10.0,4945.2,4945.1,3.88446752]
[1756059845289,10.0,4945.2,4945.1,0.18246752]
[1756059845497,10.2953,4945.2,4945.1,0.18246752]
[1756059845797,10.7588,4945.2,4945.1,0.18246752]
[1756059846022,10.8596,4945.2,4945.1,3.88346752]
[1756059846459,10.8596,4945.2,4945.1,0.18246752]
[1756059846661,10.8596,4945.2,4945.1,3.88346752]
[1756059846879,11.17591659,4945.2,4945.1,3.88346752]
[1756059847490,11.17591659,4945.2,4945.1,6.701]
[1756059847794,11.17591659,4945.2,4945.1,3.0]
[1756059848208,11.17591659,4945.2,4945.1,6.701]
[1756059848660,11.17591659,4945.2,4945.1,3.0]
[1756059848856,11.17591659,4945.2,4945.1,6.7]
[1756059849611,10.0,4945.2,4945.1,7.006]
[1756059849771,10.0,4945.2,4945.1,3.7608]
[1756059850122,10.0,4945.2,4945.1,7.4608]
[1756059850412,0.74127695,4945.2,4945.1,7.4608]
[1756059850591,0.74127695,4945.2,4945.1,3.7608]
[1756059850891,0.74127695,4945.2,4945.1,22.556037]
[1756059851399,0.002,4946.2,4945.2,3.0]
[1756059851556,0.002,4946.2,4945.7,0.306]
[1756059851762,0.4655,4946.2,4945.7,6.7]
[1756059852085,0.3153,4945.8,4945.7,6.7]
[1756059852455,0.3153,4945.8,4945.7,3.0]
[1756059852704,0.3153,4945.8,4945.7,6.7]
[1756059853265,0.02,4945.8,4945.7,3.0]
[1756059853466,0.02,4945.8,4945.7,7.005]
[1756059853666,0.02,4945.8,4945.7,6.699]
[1756059853967,0.2172,4945.8,4945.7,6.699]
[1756059854304,0.02,4945.8,4945.7,6.699]
[1756059854801,0.022,4945.8,4945.7,6.699]
[1756059854987,0.2172,4945.8,4945.7,6.699]
[1756059855533,0.022,4945.8,4945.7,6.699]
[1756059855882,0.022,4945.8,4945.7,3.0]
[1756059856087,0.022,4945.8,4945.7,6.699]
[1756059856307,0.02,4945.8,4945.7,6.699]
[1756059857396,0.022,4945.8,4945.7,3.0]
[1756059857595,0.2172,4945.8,4945.7,6.698]
[1756059858820,0.022,4945.8,4945.7,6.698]
[1756059859127,0.4855,4945.8,4945.7,6.698]
[1756059859289,0.02,4945.8,4945.7,6.698]
[1756059860022,0.3153,4945.8,4945.7,6.698]
[1756059861440,0.3153,4945.8,4945.7,3.0]
[1756059861590,0.7788,4945.8,4945.7,3.697]
[1756059862631,0.89859073,4945.8,4945.7,3.697]
[1756059863305,0.89859073,4945.8,4945.0,0.25]
[1756059863509,0.1008,4945.3,4945.2,3.0]
[1756059863836,0.3883,4945.3,4945.0,0.25]
[1756059864209,1.17432232,4945.3,4945.2,3.0]
[1756059864395,0.70462232,4945.3,4945.0,0.25]
[1756059864600,0.70462232,4945.3,4945.2,3.0]
[1756059864916,0.70462232,4945.3,4945.0,0.25]
[1756059865252,1.17432232,4945.3,4945.1,3.696]
[1756059865543,0.70462232,4945.3,4945.2,3.0]
[1756059865706,0.3883,4945.3,4945.2,3.0]
[1756059865913,0.1008,4945.3,4945.2,3.3156]
[1756059866118,0.1008,4945.3,4945.2,3.7698]
[1756059866312,0.02,4945.8,4945.2,3.7698]
[1756059866518,0.02,4945.8,4945.2,3.8706]
[1756059867028,0.02,4945.8,4945.4,3.0]
[1756059867212,0.3883,4945.5,4945.4,3.0]
[1756059867744,0.3883,4945.5,4945.4,3.695]
[1756059868262,0.3883,4945.5,4945.1,0.001]
[1756059868629,0.3883,4945.5,4945.3,3.0]
[1756059869044,0.3883,4945.5,4945.1,0.001]
[1756059869361,0.858,4945.5,4945.4,3.0]
[1756059869762,0.3883,4945.5,4945.4,3.0]
[1756059869971,0.858,4945.5,4945.4,3.0]
[1756059870262,0.858,4945.5,4945.4,6.695]
[1756059870655,0.1008,4945.5,4945.4,6.695]
[1756059871419,0.1008,4945.5,4945.4,6.694]
[1756059871619,0.3883,4945.5,4945.4,3.694]
[1756059872357,0.4897,4945.8,4945.4,3.694]
[1756059872358,0.02,4945.8,4945.5,3.0]
[1756059872561,0.02,4945.8,4945.7,3.3156]
[1756059872859,0.02,4945.8,4945.7,4.0096]
[1756059873558,0.02,4945.8,4945.7,0.3156]
[1756059873729,0.02,4945.8,4945.7,4.0096]
[1756059873930,0.02,4945.8,4945.1,0.001]
[1756059874325,0.02,4945.8,4945.3,3.0]
[1756059875834,0.02,4945.8,4945.1,0.001]
[1756059876157,0.02,4945.8,4945.7,0.3156]
[1756059876341,0.02,4945.8,4945.7,4.4628]
[1756059876535,0.02,4945.8,4945.7,3.3156]
[1756059876841,0.02,4945.8,4945.7,6.693]
[1756059877656,0.02,4945.8,4945.7,8.247]
[1756059878230,0.02,4945.8,4945.7,8.5626]
[1756059878658,0.02,4945.8,4945.7,8.246]
[1756059878962,0.02,4945.8,4945.7,8.5616]
[1756059880432,0.02,4945.8,4945.7,9.0158]
[1756059880834,0.02,4945.8,4945.7,8.5606]
[1756059881028,0.02,4945.8,4945.7,4.8696]
[1756059881267,0.3075,4945.8,4945.7,8.245]
[1756059881448,0.02,4945.8,4945.7,8.245]
[1756059882334,0.1208,4945.8,4945.7,8.245]
[1756059883057,0.1208,4945.8,4945.7,8.5606]
[1756059883258,0.1228,4945.8,4945.7,9.0148]
[1756059883661,0.1228,4945.8,4945.7,8.5606]
[1756059884060,0.1228,4945.8,4945.7,8.5596]
[1756059884464,0.022,4945.8,4945.7,4.8696]
[1756059884761,0.022,4945.8,4945.7,4.554]
[1756059884966,0.022,4945.8,4945.7,8.244]
[1756059885329,0.022,4945.8,4945.7,4.554]
[1756059885541,0.022,4945.8,4945.7,8.243]
[1756059885742,0.1228,4945.8,4945.7,8.243]
[1756059885956,0.4103,4945.8,4945.7,8.243]
[1756059886449,0.1228,4945.8,4945.7,8.243]
[1756059886871,0.1228,4945.8,4945.7,8.5586]
[1756059887771,0.022,4945.8,4945.7,8.5586]
[1756059888148,0.022,4945.8,4945.7,8.243]
[1756059889189,0.3095,4945.8,4945.7,8.243]
[1756059889550,0.3095,4945.8,4945.7,4.554]
[1756059889744,0.3095,4945.8,4945.7,8.242]
[1756059889944,0.62579344,4945.8,4945.7,4.554]
[1756059890148,0.62579344,4945.8,4945.7,8.242]
[1756059890348,0.3095,4945.8,4945.7,8.242]
[1756059890575,0.7792,4945.8,4945.7,8.242]
[1756059890791,0.7792,4945.8,4945.7,1.554]
[1756059890975,0.7792,4945.8,4945.7,5.242]
[1756059891158,0.7792,4945.8,4945.7,5.241]
[1756059891885,0.022,4945.8,4945.7,5.5419]
[1756059892047,0.33829286,4945.8,4945.7,8.9951]
[1756059892246,0.33829286,4945.8,4945.7,9.0959]
[1756059893382,0.33829286,4945.8,4945.7,8.6417]
[1756059893571,0.33829286,4945.8,4945.7,8.5409]
[1756059893776,0.33829286,4945.8,4945.7,4.8549]
[1756059893974,0.33829286,4945.8,4945.7,8.5409]
[1756059894282,0.33829286,4945.8,4945.7,4.554]
[1756059894456,0.33829286,4945.8,4945.7,8.24]
[1756059894793,0.33829286,4945.8,4945.7,8.5409]
[1756059895764,0.022,4945.8,4945.7,8.5409]
[1756059896073,0.3339,4945.8,4945.7,4.554]
[1756059896380,0.781,4945.8,4945.7,4.554]
[1756059896581,0.781,4945.8,4945.7,8.24]
[1756059896582,0.8818,4945.8,4945.7,8.24]
[1756059897286,0.1228,4945.8,4945.7,8.24]
[1756059898691,0.1228,4945.8,4945.7,4.554]
[1756059898887,0.4347,4945.8,4945.7,8.239]
[1756059899053,0.4390979,4945.8,4945.7,8.239]
[1756059899254,0.7509979,4945.8,4945.7,1.554]
[1756059899591,0.1228,4945.8,4945.7,5.238]
[1756059899889,0.1228,4945.8,4945.7,5.5389]
[1756059900299,0.022,4945.8,4945.7,5.9921]
[1756059900599,0.3339,4945.8,4945.7,5.238]
[1756059900803,0.3339,4945.8,4945.7,1.554]
[1756059900989,0.3339,4945.8,4945.7,5.238]
[1756059900990,0.022,4945.8,4945.7,5.238]
[1756059901377,0.1228,4945.8,4945.7,8.5389]
[1756059901803,0.022,4945.8,4945.7,8.9921]
[1756059902164,0.33827967,4945.8,4945.7,9.0929]
[1756059902570,0.33827967,4945.8,4945.7,9.1937]
[1756059902971,0.002,4946.2,4945.7,9.1937]
[1756059902972,0.002,4946.2,4946.1,18.095237]
[1756059903206,0.002,4946.2,4946.1,27.037937]
[1756059903418,0.002,4946.2,4946.1,12.3959]
[1756059903570,0.002,4946.2,4946.1,8.2597]
[1756059903777,0.002,4946.2,4946.1,11.9427]
[1756059904186,0.002,4946.2,4946.1,11.54]
[1756059904369,0.002,4946.2,4946.1,6.9829]
[1756059905074,0.002,4946.2,4946.1,3.0]
[1756059905273,0.002,4946.2,4946.1,6.682]
[1756059905473,0.3139,4946.2,4946.1,3.0]
[1756059905709,0.761,4946.2,4946.1,0.18444001]
[1756059906147,1.421,4946.2,4946.1,3.86644001]
[1756059906313,1.57338,4946.2,4946.1,3.86644001]